bitfinex/quotes_SOLUSD_20250918
["timestamp","ask_amount","ask_price","bid_price","bid_amount"]
[1758184712191,0.06,246.92,246.88,1e-08]
[1758184712510,0.06,246.92,246.88,0.69000001]
[1758184712803,0.06,246.92,246.89,0.69]
[1758184713006,0.06,246.92,246.88,0.69000001]
[1758184714011,0.06,246.92,246.88,4.74052558]
[1758184714194,0.06,246.92,246.89,0.69]
[1758184714692,0.06,246.92,246.88,4.05052558]
[1758184714891,0.06,246.92,246.9,0.69]
[1758184715510,0.06,246.92,246.88,4.05052558]
[1758184715816,0.06,246.92,246.9,0.69]
[1758184716024,0.06,246.92,246.91,4.05005872]
[1758184716420,0.06,246.92,246.91,4.74005872]
[1758184716608,0.06,246.92,246.91,30.74005872]
[1758184720200,0.06,246.95,246.91,40.86520553]
[1758184720406,0.06,246.95,246.94,26.0]
[1758184720807,0.06,246.95,246.94,26.69]
[1758184721114,0.06,246.95,246.94,4.73956669]
[1758184721292,0.06,246.95,246.94,30.73956669]
[1758184723223,0.06,246.95,246.94,26.0]
[1758184723514,0.72,246.95,246.91,26.0]
[1758184723719,0.72,246.95,246.91,4.05001666]
[1758184723898,0.72,246.95,246.89,4.05030354]
[1758184723899,0.66,246.94,246.89,4.05030354]
[1758184724104,0.06,246.95,246.89,30.05030354]
[1758184725020,0.06,246.95,246.89,4.05030354]
[1758184725220,0.06,246.95,246.89,30.05030354]
[1758184725513,0.06,246.95,246.9,0.69]
[1758184725721,0.06,246.95,246.91,0.69]
[1758184726023,0.06,246.95,246.92,0.69]
[1758184727017,0.06,246.95,246.93,0.69]
[1758184727215,0.06,246.95,246.94,4.04956669]
[1758184727395,0.06,246.95,246.94,4.73956669]
[1758184728316,0.06,246.95,246.88,33.71000001]
[1758184728614,0.66,246.94,246.88,4.05049003]
[1758184728821,0.06,246.95,246.89,26.69]
[1758184729309,0.06,246.95,246.93,30.04973069]
[1758184729513,0.06,246.95,246.94,6.00819266]
[1758184729715,0.06,246.95,246.94,6.69819266]
[1758184731215,0.06,247.01,246.95,26.0]
[1758184731396,0.06,247.01,246.96,4.04923874]
[1758184731817,0.72,247.01,246.96,4.04923874]
[1758184734003,0.06,247.01,246.96,4.04923874]
[1758184735320,0.06,247.01,246.96,4.74923874]
[1758184737126,0.06,247.01,246.97,0.7]
[1758184737422,0.06,247.01,246.98,4.74891084]
[1758184737821,0.06,247.01,246.98,4.04891084]
[1758184738535,0.75,247.01,246.96,4.04909792]
[1758184738826,0.69,247.0,246.96,4.04909792]
[1758184739035,0.06,247.01,246.96,4.04909792]
[1758184739211,0.75,247.01,246.96,4.04909792]
[1758184739612,0.75,247.01,246.9,10.21512554]
[1758184739613,0.69,247.0,246.9,0.7]
[1758184739808,0.69,247.0,246.89,4.05027441]
[1758184740022,14.28559401,246.99,246.89,4.05027441]
[1758184740220,0.69,246.98,246.88,0.70000001]
[1758184740421,0.69,246.98,246.88,1e-08]
[1758184740728,13.59559401,246.97,246.88,1e-08]
[1758184741130,13.59559401,246.97,246.88,26.00000001]
[1758184741327,0.69,246.96,246.88,26.00000001]
[1758184741526,0.69,246.95,246.88,30.0505164]
[1758184743634,0.69,246.95,246.88,40.17689358]
[1758184746733,0.69,246.95,246.88,40.86689358]
[1758184747227,17.644177,247.0,246.88,40.86689358]
[1758184747530,46.53559401,247.01,246.88,40.86689358]
[1758184747531,0.72,246.99,246.89,0.69]
[1758184748419,0.72,246.99,246.9,4.05022276]
[1758184748616,0.06,247.01,246.9,40.17577966]
[1758184748810,0.06,247.01,246.94,26.0]
[1758184749325,0.06,247.01,246.94,26.69]
[1758184750529,0.06,247.01,246.95,4.04940271]
[1758184750830,0.06,247.01,246.95,30.04940271]
[1758184751518,0.78,247.01,246.95,26.0]
[1758184752529,0.78,247.01,246.95,30.04923912]
[1758184753742,0.06,247.01,246.95,30.73923912]
[1758184754335,0.06,247.01,246.97,4.04907478]
[1758184754710,0.06,247.01,246.98,0.69]
[1758184755237,0.06,247.01,246.99,0.69]
[1758184755842,0.06,247.01,247.0,4.73858299]
[1758184756833,0.06,247.01,247.0,4.04858299]
[1758184757017,0.78,247.01,246.94,26.0]
[1758184757223,0.72,247.0,246.9,0.69]
[1758184757718,4.04874691,246.99,246.91,4.05005872]
[1758184757917,4.04874691,246.99,246.92,26.0]
[1758184759719,4.04874691,246.99,246.92,30.04984694]
[1758184760334,0.72,246.98,246.91,26.0]
[1758184760536,0.72,246.98,246.89,26.0]
[1758184760736,0.72,246.97,246.89,26.0]
[1758184760955,0.72,246.96,246.88,4.05044675]
[1758184761131,0.72,246.95,246.88,4.05044675]
[1758184761722,4.76946255,246.95,246.88,4.05044675]
[1758184762051,0.72,246.95,246.88,4.05044675]
[1758184762419,4.76945625,246.95,246.88,1e-08]
[1758184762716,0.72,246.94,246.88,1e-08]
[1758184764549,13.59559401,246.94,246.88,1e-08]
[1758184764736,0.72,246.93,246.88,1e-08]
[1758184765242,13.59559401,246.92,246.88,1e-08]
[1758184765660,4.05038681,246.89,246.88,1e-08]
[1758184766151,4.77038681,246.89,246.88,1e-08]
[1758184766353,18.36598082,246.89,246.88,1e-08]
[1758184767362,14.31559401,246.89,246.88,1e-08]
[1758184767723,0.72,246.89,246.88,1e-08]
[1758184767924,33.34,246.92,246.88,1e-08]
[1758184768448,0.72,246.91,246.88,1e-08]
[1758184769124,32.62,246.92,246.88,1e-08]
[1758184769353,0.72,246.94,246.88,1e-08]
[1758184769655,0.72,246.95,246.88,1e-08]
[1758184769836,33.32,246.95,246.88,1e-08]
[1758184770036,33.32,246.95,246.88,26.69000001]
[1758184770248,4.04914725,246.97,246.88,26.69000001]
[1758184770430,37.36914725,246.97,246.88,26.69000001]
[1758184770631,37.36914725,246.97,246.88,0.69000001]
[1758184770829,0.72,246.97,246.88,0.69000001]
[1758184771051,33.32,246.97,246.89,4.05038681]
[1758184772057,0.72,246.97,246.89,4.05038681]
[1758184772262,33.3,246.97,246.89,4.05038681]
[1758184772437,0.72,246.97,246.89,4.05038681]
[1758184772854,33.3,246.97,246.89,4.05038681]
[1758184773041,33.28,246.97,246.89,4.05038681]
[1758184773354,0.7,246.96,246.89,4.05038681]
[1758184773656,4.04879103,246.99,246.88,0.69000001]
[1758184773657,32.56,246.98,246.91,4.05005872]
[1758184774363,33.26,246.99,246.91,4.05005872]
[1758184775366,0.7,246.98,246.91,4.05005872]
[1758184775570,0.7,246.97,246.9,30.05018602]
[1758184775860,0.7,246.96,246.9,30.05018602]
[1758184776045,0.7,246.95,246.88,1e-08]
[1758184776246,13.59559401,246.94,246.88,1e-08]
[1758184776659,33.24,246.93,246.88,1e-08]
[1758184777368,33.22,246.93,246.88,1e-08]
[1758184777572,37.26978341,246.93,246.88,1e-08]
[1758184777761,33.22,246.93,246.88,1e-08]
[1758184777974,33.22,246.92,246.88,1e-08]
[1758184779066,2.15568147,246.91,246.88,1e-08]
[1758184779257,0.7,246.91,246.88,1e-08]
[1758184779773,32.5,246.9,246.88,1e-08]
[1758184780278,33.2,246.89,246.88,1e-08]
[1758184780449,0.7,246.89,246.88,1e-08]
[1758184780765,33.2,246.89,246.88,1e-08]
[1758184780963,50.84598082,246.89,246.88,1e-08]
[1758184781170,53.12362714,246.89,246.88,1e-08]
[1758184781644,20.62362714,246.89,246.88,1e-08]
[1758184781840,53.10362714,246.89,246.88,1e-08]
[1758184782261,18.34598082,246.89,246.88,1e-08]
[1758184782458,33.18,246.89,246.88,1e-08]
[1758184783012,33.2,246.89,246.88,1e-08]
[1758184787584,46.79559401,246.89,246.88,1e-08]
[1758184787965,14.29559401,246.89,246.88,1e-08]
[1758184788166,46.73559401,246.89,246.88,1e-08]
[1758184788369,16.57324033,246.89,246.88,1e-08]
[1758184788665,48.99324033,246.89,246.88,1e-08]
[1758184788867,16.57324033,246.89,246.88,1e-08]
[1758184789079,48.99324033,246.89,246.88,1e-08]
[1758184789879,16.57324033,246.89,246.88,1e-08]
[1758184790067,48.97324033,246.89,246.88,1e-08]
[1758184790580,14.29559401,246.89,246.88,1e-08]
[1758184790882,46.69559401,246.89,246.88,1e-08]
[1758184791061,46.67559401,246.89,246.88,1e-08]
[1758184791682,14.29559401,246.89,246.88,1e-08]
[1758184791883,16.57324033,246.89,246.88,1e-08]
[1758184792388,48.95324033,246.89,246.88,1e-08]
[1758184792566,16.57324033,246.89,246.88,1e-08]
[1758184792969,48.95324033,246.89,246.88,1e-08]
[1758184793390,16.57324033,246.89,246.88,1e-08]
[1758184793685,48.93324033,246.89,246.88,1e-08]
[1758184794077,16.57324033,246.89,246.88,1e-08]
[1758184794274,48.93324033,246.89,246.88,1e-08]
[1758184794591,16.57324033,246.89,246.88,1e-08]
[1758184794994,14.29559401,246.89,246.88,1e-08]
[1758184795173,16.57324033,246.89,246.88,1e-08]
[1758184795880,48.89324033,246.89,246.88,1e-08]
[1758184796072,16.57324033,246.89,246.88,1e-08]
[1758184796382,48.89324033,246.89,246.88,1e-08]
[1758184796696,16.85756347,246.89,246.88,1e-08]
[1758184797183,49.17756347,246.89,246.88,1e-08]
[1758184797583,16.85756347,246.89,246.88,1e-08]
[1758184797766,49.15756347,246.89,246.88,1e-08]
[1758184798368,14.57991715,246.89,246.88,1e-08]
[1758184798583,49.15756347,246.89,246.88,1e-08]
[1758184798786,16.85756347,246.89,246.88,1e-08]
[1758184798987,49.15756347,246.89,246.88,1e-08]
[1758184799369,16.85756347,246.89,246.88,1e-08]
[1758184800386,49.13756347,246.89,246.88,1e-08]
[1758184800795,16.85756347,246.89,246.88,1e-08]
[1758184800974,49.13756347,246.89,246.88,1e-08]
[1758184801175,16.85756347,246.89,246.88,1e-08]
[1758184801376,13.87991715,246.89,246.88,1e-08]
[1758184801581,45.85559401,246.89,246.88,1e-08]
[1758184803292,13.59559401,246.89,246.88,1e-08]
[1758184803472,45.85559401,246.89,246.88,1e-08]
[1758184804377,46.13991715,246.89,246.88,1e-08]
[1758184806297,13.87991715,246.89,246.88,1e-08]
[1758184806800,13.59559401,246.89,246.88,0.68000001]
[1758184807012,13.59559401,246.93,246.88,0.68000001]
[1758184807179,32.22,246.92,246.88,0.68000001]
[1758184807817,32.22,246.91,246.88,0.68000001]
[1758184808192,0.06,246.95,246.88,26.68000001]
[1758184808402,0.06,246.95,246.88,26.00000001]
[1758184808585,32.2,246.94,246.89,0.68]
[1758184809006,32.2,246.93,246.89,4.73033797]
[1758184809180,32.2,246.93,246.89,4.05033797]
[1758184809382,32.2,246.93,246.9,0.68]
[1758184809715,32.2,246.93,246.91,0.68]
[1758184810011,32.2,246.93,246.92,0.68]
[1758184813030,32.2,246.93,246.9,0.68]
[1758184813513,32.16,246.92,246.91,0.68]
[1758184813894,32.14,246.92,246.91,0.68]
[1758184814488,32.14,246.92,246.9,4.05017143]
[1758184814489,0.06,246.95,246.9,4.05017143]
[1758184814684,0.06,246.95,246.9,4.73017143]
[1758184814904,0.78,246.95,246.9,0.68]
[1758184815113,46.43559401,246.94,246.88,1e-08]
[1758184815284,32.12,246.93,246.88,1e-08]
[1758184815486,14.31559401,246.94,246.88,1e-08]
[1758184815791,0.72,246.92,246.88,1e-08]
[1758184816002,32.12,246.91,246.88,1e-08]
[1758184816209,32.12,246.9,246.88,1e-08]
[1758184816410,0.72,246.91,246.88,1e-08]
[1758184816710,32.12,246.89,246.88,1e-08]
[1758184817304,0.72,246.91,246.88,1e-08]
[1758184817491,32.12,246.9,246.88,1e-08]
[1758184817696,32.12,246.89,246.88,1e-08]
[1758184818489,4.76980629,246.93,246.88,1e-08]
[1758184818490,13.59559401,246.92,246.88,1e-08]
[1758184818700,0.72,246.92,246.88,1e-08]
[1758184818918,32.12,246.91,246.88,1e-08]
[1758184819093,0.72,246.91,246.88,1e-08]
[1758184819296,32.12,246.9,246.88,1e-08]
[1758184819598,32.12,246.89,246.88,1e-08]
[1758184819792,32.84,246.89,246.88,1e-08]
[1758184820025,0.72,246.89,246.88,1e-08]
[1758184820314,46.43559401,246.89,246.88,1e-08]
[1758184821589,50.48598082,246.89,246.88,1e-08]
[1758184822908,53.04795028,246.89,246.88,1e-08]
[1758184823107,50.77030396,246.89,246.88,1e-08]
[1758184823315,20.92795028,246.89,246.88,1e-08]
[1758184823500,53.04795028,246.89,246.88,1e-08]
[1758184824090,20.92795028,246.89,246.88,1e-08]
[1758184824994,50.77030396,246.89,246.88,1e-08]
[1758184825515,53.04795028,246.89,246.88,1e-08]
[1758184825697,20.92795028,246.89,246.88,1e-08]
[1758184825897,53.04795028,246.89,246.88,1e-08]
[1758184826404,20.92795028,246.89,246.88,1e-08]
[1758184826918,50.77030396,246.89,246.88,1e-08]
[1758184827114,20.92795028,246.89,246.88,1e-08]
[1758184827500,53.04795028,246.89,246.88,1e-08]
[1758184827698,20.92795028,246.89,246.88,1e-08]
[1758184829193,53.04795028,246.89,246.88,1e-08]
[1758184829498,20.92795028,246.89,246.88,1e-08]
[1758184829698,53.04795028,246.89,246.88,1e-08]
[1758184830117,20.92795028,246.89,246.88,1e-08]
[1758184830927,53.04795028,246.89,246.88,1e-08]
[1758184831399,20.92795028,246.89,246.88,1e-08]
[1758184831599,53.04795028,246.89,246.88,1e-08]
[1758184831933,55.3255966,246.89,246.88,1e-08]
[1758184833415,56.94729493,246.89,246.88,1e-08]
[1758184834220,52.39200229,246.89,246.88,1e-08]
[1758184834402,56.94729493,246.89,246.88,1e-08]
[1758184837718,13.59559401,246.85,246.83,0.03]
[1758184837904,13.59559401,246.85,246.82,0.03]
[1758184837905,0.28432314,246.83,246.82,0.03]
[1758184838105,48.27756347,246.83,246.82,0.03]
[1758184838305,48.93756347,246.83,246.82,0.03]
[1758184838517,52.98893485,246.83,246.82,0.03]
[1758184841948,52.17090118,246.83,246.82,0.03]
[1758184842533,13.87991715,246.82,246.81,1e-08]
[1758184842739,15.3395298,246.82,246.81,1e-08]
[1758184842936,15.9995298,246.82,246.81,1e-08]
[1758184843126,48.1195298,246.82,246.81,1e-08]
[1758184843322,15.9995298,246.82,246.81,1e-08]
[1758184843636,48.1195298,246.82,246.81,1e-08]
[1758184846432,15.9995298,246.82,246.81,1e-08]
[1758184846640,48.1195298,246.82,246.81,1e-08]
[1758184846829,15.9995298,246.82,246.81,1e-08]
[1758184847033,48.1195298,246.82,246.81,1e-08]
[1758184847632,15.9995298,246.82,246.81,1e-08]
[1758184847836,48.1195298,246.82,246.81,1e-08]
[1758184848414,15.9995298,246.82,246.81,1e-08]
[1758184848643,48.1195298,246.82,246.81,1e-08]
[1758184849030,15.3395298,246.82,246.81,1e-08]
[1758184849612,47.4595298,246.82,246.81,1e-08]
[1758184850911,15.3395298,246.82,246.81,1e-08]
[1758184851107,47.4595298,246.82,246.81,1e-08]
[1758184852029,45.99991715,246.82,246.81,1e-08]
[1758184852239,47.4595298,246.82,246.81,1e-08]
[1758184852418,48.1395298,246.82,246.81,1e-08]
[1758184855427,16.0195298,246.82,246.81,1e-08]
[1758184855634,48.1395298,246.82,246.81,1e-08]
[1758184857550,47.4595298,246.82,246.81,1e-08]
[1758184857737,48.1195298,246.82,246.81,1e-08]
[1758184859626,39.59559401,246.8,246.77,0.03]
[1758184859963,21.1779804,246.78,246.77,0.03]
[1758184860454,21.8579804,246.78,246.77,0.03]
[1758184860841,25.91017263,246.78,246.77,0.03]
[1758184861256,0.28432314,246.77,246.76,1e-08]
[1758184861431,16.0195298,246.77,246.76,1e-08]
[1758184862139,15.3395298,246.72,246.71,0.1]
[1758184862341,48.89914245,246.72,246.71,0.1]
[1758184862532,45.97991715,246.72,246.71,0.1]
[1758184862729,47.4395298,246.72,246.71,0.1]
[1758184862930,51.49270749,246.72,246.71,0.1]
[1758184863352,50.03309484,246.72,246.71,0.1]
[1758184863536,19.39270749,246.72,246.71,0.1]
[1758184864755,17.93309484,246.72,246.71,0.75]
[1758184864949,49.7487717,246.72,246.71,0.75]
[1758184865135,45.69559401,246.72,246.71,0.75]
[1758184865336,13.59559401,246.72,246.71,0.75]
[1758184865838,45.69559401,246.72,246.71,0.75]
[1758184866260,13.59559401,246.72,246.71,0.75]
[1758184866467,45.69559401,246.72,246.71,0.75]
[1758184868658,13.59559401,246.72,246.71,0.75]
[1758184868861,45.69559401,246.72,246.71,0.75]
[1758184869238,13.59559401,246.72,246.71,0.75]
[1758184869438,45.69559401,246.72,246.71,0.75]
[1758184869854,13.59559401,246.72,246.71,0.75]
[1758184870050,45.69559401,246.72,246.71,0.75]
[1758184870255,47.15520666,246.72,246.71,0.1]
[1758184870568,47.4395298,246.72,246.71,0.1]
[1758184870750,15.3395298,246.72,246.71,0.1]
[1758184870950,46.68991715,246.72,246.71,0.1]
[1758184871262,48.1495298,246.72,246.71,0.1]
[1758184871655,16.0495298,246.72,246.71,0.1]
[1758184871861,47.4395298,246.72,246.71,0.1]
[1758184872246,15.3395298,246.72,246.71,0.1]
[1758184873154,13.87991715,246.72,246.71,0.1]
[1758184873463,15.3395298,246.72,246.71,0.1]
[1758184873653,15.3395298,246.72,246.71,0.75]
[1758184873654,13.59559401,246.72,246.71,0.75]
[1758184873856,45.69559401,246.72,246.71,0.75]
[1758184874061,0.28432314,246.75,246.71,0.75]
[1758184874062,4.05282557,246.75,246.71,0.75]
[1758184874368,13.59559401,246.74,246.71,0.75]
[1758184874570,32.1,246.73,246.71,0.75]
[1758184875070,32.1,246.72,246.71,0.75]
[1758184878253,1.45961265,246.74,246.71,0.78]
[1758184878569,32.1,246.73,246.71,0.78]
[1758184879065,45.69559401,246.73,246.72,0.65]
[1758184880750,45.69559401,246.73,246.71,0.13]
[1758184880956,13.59559401,246.73,246.71,0.13]
[1758184881146,32.1,246.72,246.71,0.13]
[1758184881567,13.59559401,246.73,246.71,0.13]
[1758184881769,32.1,246.72,246.71,0.13]
[1758184881976,33.55961265,246.72,246.71,0.13]
[1758184882161,17.64865723,246.73,246.71,0.13]
[1758184882354,32.1,246.72,246.71,0.13]
[1758184882754,47.15520666,246.72,246.71,0.13]
[1758184882967,47.86520666,246.72,246.71,0.13]
[1758184883674,15.05520666,246.72,246.71,0.13]
[1758184883879,47.15520666,246.72,246.71,0.13]
[1758184884876,15.05520666,246.72,246.71,0.13]
[1758184885183,47.86520666,246.72,246.71,0.13]
[1758184885473,15.76520666,246.72,246.71,0.13]
[1758184885679,47.84520666,246.72,246.71,0.13]
[1758184886172,48.1295298,246.72,246.71,0.13]
[1758184887755,47.4195298,246.72,246.71,0.13]
[1758184888159,48.1295298,246.72,246.71,0.13]
[1758184891177,0.28432314,246.72,246.71,0.13]
[1758184891354,1.45961265,246.73,246.71,0.13]
[1758184891558,13.59559401,246.72,246.71,0.13]
[1758184892181,47.13520666,246.72,246.71,0.13]
[1758184892355,47.4195298,246.72,246.71,0.13]
[1758184892563,48.1295298,246.72,246.71,0.13]
[1758184901678,60.05557636,246.72,246.71,0.13]
[1758184903879,60.87817169,246.72,246.71,0.13]
[1758184905979,28.79817169,246.72,246.71,0.13]
[1758184906183,60.85817169,246.72,246.71,0.13]
[1758184906380,28.79817169,246.72,246.71,0.13]
[1758184906696,60.85817169,246.72,246.71,0.13]
[1758184908986,28.79817169,246.72,246.71,0.13]
[1758184909195,60.85817169,246.72,246.71,0.13]
[1758184912787,28.79817169,246.72,246.71,0.13]
[1758184913306,60.85817169,246.72,246.71,0.13]
[1758184913504,1.62261931,246.75,246.71,0.81]
[1758184913686,45.65559401,246.74,246.72,0.68]
[1758184913886,0.28432314,246.73,246.72,0.68]
[1758184914310,32.34432314,246.73,246.72,0.68]
[1758184915184,32.20216157,246.73,246.72,0.68]
[1758184915800,32.20216157,246.73,246.71,0.13]
[1758184916007,13.59559401,246.72,246.71,0.79]
[1758184916195,45.65559401,246.72,246.71,0.79]
[1758184916380,4.11261374,246.76,246.71,0.79]
[1758184916381,0.06,246.76,246.71,0.79]
[1758184916583,0.06,246.76,246.71,4.84327233]
[1758184916784,32.04,246.75,246.72,0.66]
[1758184917516,32.04,246.75,246.73,4.05301341]
[1758184917693,32.04,246.75,246.74,0.66]
[1758184917884,32.1,246.76,246.74,0.66]
[1758184918392,0.06,246.76,246.74,0.66]
[1758184918597,32.1,246.76,246.74,0.66]
[1758184918989,32.1,246.76,246.75,4.0526849]
[1758184919183,32.1,246.76,246.75,4.7126849]
[1758184919585,0.06,246.76,246.75,4.7126849]
[1758184920608,0.06,246.76,246.75,0.66]
[1758184922390,32.1,246.76,246.75,0.66]
[1758184923817,0.06,246.76,246.75,0.66]
[1758184924111,0.06,246.76,246.72,4.05315872]
[1758184924306,32.02,246.75,246.73,0.66]
[1758184924612,0.06,246.76,246.74,0.66]
[1758184924908,32.02,246.74,246.71,0.13]
[1758184925410,32.02,246.74,246.71,0.79]
[1758184925624,13.65559401,246.76,246.71,0.79]
[1758184925811,32.02,246.75,246.71,0.79]
[1758184926200,13.65559401,246.76,246.71,0.79]
[1758184926398,32.02,246.75,246.71,0.79]
[1758184927015,32.02,246.74,246.71,0.79]
[1758184927223,32.02,246.73,246.71,0.79]
[1758184928134,32.02,246.72,246.71,0.79]
[1758184928323,0.69,246.75,246.71,0.13]
[1758184928494,32.02,246.74,246.71,0.13]
[1758184928700,32.02,246.73,246.71,0.13]
[1758184928898,0.69,246.75,246.71,0.13]
[1758184929110,19.99035938,246.76,246.71,0.13]
[1758184929111,32.02,246.74,246.71,0.13]
[1758184929312,32.02,246.73,246.71,0.13]
[1758184930614,32.71,246.73,246.71,0.13]
[1758184931316,32.02,246.73,246.71,0.13]
[1758184931693,32.71,246.73,246.71,0.13]
[1758184932116,32.02,246.73,246.71,0.13]
[1758184932314,14.34559401,246.76,246.71,0.13]
[1758184932315,0.06,246.76,246.71,26.13]
[1758184932618,0.06,246.77,246.72,36.52652144]
[1758184932805,0.06,246.77,246.72,38.14795682]
[1758184933012,0.06,246.77,246.75,26.0]
[1758184933516,0.06,246.77,246.76,4.71252066]
[1758184935801,0.06,246.77,246.76,10.52579871]
[1758184937404,0.06,246.77,246.76,10.12054665]
[1758184937924,0.06,246.77,246.76,11.74171916]
[1758184938114,0.06,246.79,246.76,11.74171916]
[1758184938312,1e-08,246.81,246.8,26.0]
[1758184938518,1e-08,246.82,246.8,37.08719367]
[1758184938713,1e-08,246.82,246.81,38.47319595]
[1758184939015,0.06,246.87,246.81,38.47319595]
[1758184939016,0.06,246.87,246.84,26.0]
[1758184939217,0.06,246.87,246.84,30.05120725]
[1758184939402,0.06,246.87,246.84,36.11923324]
[1758184939603,0.06,246.87,246.84,30.05120725]
[1758184943907,0.06,246.87,246.82,30.05150884]
[1758184944318,0.06,246.87,246.82,4.05150884]
[1758184944824,0.06,246.87,246.78,6.33308797]
[1758184944825,0.69,246.84,246.78,6.33308797]
[1758184945027,0.69,246.84,246.78,4.71211255]
[1758184945238,0.69,246.84,246.78,30.71211255]
[1758184947026,0.69,246.83,246.78,30.05211255]
[1758184947234,0.69,246.82,246.78,30.05211255]
[1758184947924,0.69,246.84,246.77,26.0]
[1758184948107,0.69,246.84,246.78,26.0]
[1758184949430,0.69,246.84,246.78,30.0520385]
[1758184952621,0.75,246.84,246.78,30.0520385]
[1758184953619,0.75,246.84,246.77,0.66]
[1758184953809,0.75,246.84,246.77,4.71225246]
[1758184955109,0.75,246.84,246.77,4.05225246]
[1758184955320,0.75,246.84,246.77,4.71225246]
[1758184956638,0.71,246.83,246.77,26.0]
[1758184956828,0.71,246.82,246.76,0.03]
[1758184957340,0.06,246.84,246.77,0.66]
[1758184958718,0.06,246.84,246.78,4.05219223]
[1758184959438,0.06,246.84,246.77,4.05232125]
[1758184959739,0.06,246.84,246.78,0.66]
[1758184961146,0.77,246.84,246.78,0.66]
[1758184961318,0.77,246.84,246.77,30.05232125]
[1758184961819,0.71,246.83,246.77,30.05232125]
[1758184964244,9.92644873,246.85,246.78,0.66]
[1758184964452,31.96,246.84,246.78,0.66]
[1758184966034,32.67,246.84,246.78,0.66]
[1758184966838,36.72124575,246.84,246.77,30.05232125]
[1758184967043,0.71,246.83,246.77,30.05232125]
[1758184967423,31.96,246.84,246.78,0.66]
[1758184968046,32.67,246.84,246.78,0.66]
[1758184968556,0.71,246.84,246.78,0.66]
[1758184968744,31.94,246.83,246.78,0.66]
[1758184969039,32.65,246.83,246.78,0.66]
[1758184969549,4.76108681,246.85,246.79,0.66]
[1758184969743,31.94,246.85,246.79,4.71199029]
[1758184970751,32.0,246.85,246.79,4.71199029]
[1758184970929,32.71,246.85,246.79,4.71199029]
[1758184972641,0.71,246.84,246.77,30.08222707]
[1758184972952,0.71,246.83,246.77,26.03]
[1758184973130,0.71,246.82,246.77,26.03]
[1758184973330,0.71,246.81,246.77,0.03]
[1758184973863,0.71,246.8,246.77,0.03]
[1758184974239,46.17866939,246.85,246.77,0.03]
[1758184974240,32.65,246.79,246.77,0.03]
[1758184974861,0.67,246.78,246.77,0.03]
[1758184975371,31.94,246.79,246.77,0.03]
[1758184975542,32.61,246.79,246.77,0.03]
[1758184976349,35.99205326,246.79,246.77,0.03]
[1758184976543,0.67,246.78,246.77,0.03]
[1758184976871,14.26559401,246.78,246.77,0.03]
[1758184980046,16.00833738,246.78,246.77,0.03]
[1758184980757,47.92833738,246.78,246.77,0.03]
[1758184982053,49.38675761,246.78,246.77,0.03]
[1758184982360,53.7620183,246.78,246.77,0.03]
[1758184982660,47.92833738,246.78,246.77,0.03]
[1758184982864,16.00833738,246.78,246.77,0.03]
[1758184983170,39.87991715,246.76,246.75,0.03]
[1758184983354,41.33833738,246.76,246.75,0.03]
[1758184983664,42.04833738,246.76,246.75,0.03]
[1758184984556,43.67082506,246.76,246.75,0.03]
[1758184985445,42.21240483,246.76,246.75,0.03]
[1758184985767,43.67082506,246.76,246.75,0.03]
[1758184986266,56.01198447,246.76,246.75,0.03]